bitfinex-derivatives/quotes_ETHF0:USTF0_20250317
["timestamp","ask_amount","ask_price","bid_price","bid_amount"]
[1742227209450,0.00780336,1920.4,1920.3,1.04158]
[1742227209856,1.38740336,1920.4,1920.3,1.04158]
[1742227210051,0.00780336,1920.4,1920.3,1.75413772]
[1742227210246,0.00780336,1920.4,1920.3,3.03053347]
[1742227210446,0.00780336,1920.4,1920.3,6.23833347]
[1742227210647,1.3796,1920.8,1920.7,1.04137]
[1742227211950,3.21560336,1920.9,1920.8,1.04131]
[1742227212451,3.21560336,1920.9,1920.7,1.04133]
[1742227212648,2.0839,1920.8,1920.7,1.04133]
[1742227213850,3.12523,1920.8,1920.6,1.04919336]
[1742227214058,9.97447,1920.7,1920.6,0.00780336]
[1742227214354,11.53657,1920.7,1920.0,6.38939819]
[1742227214550,1.04155,1920.4,1920.2,1.04162]
[1742227214759,2.0163,1920.3,1920.2,1.04162]
[1742227215251,5.2241,1920.3,1919.9,1.3234]
[1742227215459,2.34985,1920.2,1920.1,0.00780336]
[1742227216052,6.06685,1920.2,1920.1,0.00780336]
[1742227216254,6.06685,1920.2,1919.6,3.2078]
[1742227216255,5.0252,1920.2,1919.5,6.32205]
[1742227216455,2.4368,1920.1,1919.9,1.04177]
[1742227216755,1.3951,1920.0,1919.9,1.04177]
[1742227217154,2.43686,1920.0,1919.8,1.04183]
[1742227217359,1.3951,1920.0,1919.9,1.0418]
[1742227217556,3.2078,1920.1,1920.0,1.04175]
[1742227218059,3.9159,1920.3,1920.2,1.04164]
[1742227219252,3.9159,1920.3,1920.1,1.04167]
[1742227219453,1.04164,1920.2,1920.0,4.75871]
[1742227219961,1.04164,1920.2,1920.0,4.7587]
[1742227220259,1.04164,1920.2,1920.1,1.04169]
[1742227220459,4.9575,1920.3,1920.1,1.04169]
[1742227220659,3.9159,1920.3,1920.1,1.04169]
[1742227220859,3.9159,1920.3,1920.2,1.04164]
[1742227221059,4.9575,1920.3,1920.1,1.04166]
[1742227221361,1.04164,1920.2,1920.1,1.04166]
[1742227221564,1.74972,1920.3,1920.2,1.04164]
[1742227221860,4.95752,1920.3,1920.2,1.04164]
[1742227222055,0.7081,1920.3,1920.2,1.04164]
[1742227222956,1.04148,1920.5,1920.2,6.9088]
[1742227223158,1.04155,1920.4,1920.2,4.74261]
[1742227223366,1.04155,1920.4,1920.2,1.04161]
[1742227223566,3.9246,1920.5,1920.0,3.705]
[1742227223567,4.96611,1920.5,1920.3,1.04158]
[1742227223965,4.96611,1920.5,1920.2,1.0416]
[1742227223966,1.04156,1920.4,1920.2,1.0416]
[1742227224167,1.04153,1920.4,1920.2,1.0416]
[1742227224761,1.04158,1920.3,1920.1,2.35865]
[1742227224962,4.24944,1920.2,1920.1,1.04165]
[1742227225163,3.8784,1920.2,1920.1,1.04165]
[1742227225364,0.6706,1920.2,1920.1,1.04165]
[1742227225564,3.2078,1920.4,1920.3,1.04158]
[1742227225759,4.24933,1920.4,1920.3,1.04158]
[1742227226065,4.24935,1920.4,1920.3,1.04158]
[1742227226364,4.24933,1920.4,1920.3,1.04158]
[1742227226665,3.2078,1920.4,1920.3,1.04158]
[1742227227666,4.24933,1920.4,1920.3,1.04158]
[1742227227859,1.04158,1920.3,1920.2,2.4554]
[1742227228059,1.04158,1920.3,1920.2,1.0416]
[1742227228562,1.04155,1920.4,1920.3,1.04158]
[1742227228764,4.24935,1920.4,1920.3,1.04158]
[1742227229267,6.9028,1920.4,1919.8,0.00520219]
[1742227229467,6.9028,1920.4,1920.0,1.04175]
[1742227229468,4.24952,1920.1,1920.0,1.04175]
[1742227229962,1.04176,1920.0,1919.9,1.04175]
[1742227230167,2.39446,1920.0,1919.9,1.04175]
[1742227230464,1.3527,1920.0,1919.9,1.04175]
[1742227231065,1.0418,1919.9,1919.8,0.00520219]
[1742227231367,7.9456,1919.9,1919.8,1e-08]
[1742227231960,10.4456,1919.9,1919.8,1e-08]
[1742227232266,7.9456,1919.9,1919.8,1e-08]
[1742227232662,10.4456,1919.9,1919.8,1e-08]
[1742227233171,7.9456,1919.9,1919.8,1e-08]
[1742227233573,4.7378,1919.9,1919.8,1e-08]
[1742227233869,7.9456,1919.9,1919.8,1e-08]
[1742227234168,9.3441,1919.9,1919.8,1e-08]
[1742227234758,11.8441,1919.9,1919.8,1e-08]
[1742227235163,17.7141,1919.9,1919.8,1e-08]
[1742227235361,1.04227,1919.1,1918.5,2.60634]
[1742227235566,2.0002,1919.0,1918.8,1.04237]
[1742227235861,2.0002,1919.0,1918.9,1.04234]
[1742227236063,3.2078,1919.1,1919.0,1.04229]
[1742227236669,5.7052,1919.2,1919.1,1.04223]
[1742227236670,1.33100336,1919.2,1919.1,1.04223]
[1742227237570,0.00780336,1919.2,1919.1,1.04223]
[1742227238562,1.3635,1919.5,1919.4,1.04207]
[1742227239067,1.04212,1919.4,1919.2,1.328]
[1742227239269,4.5713,1919.3,1919.0,7.33580336]
[1742227239463,5.2832,1919.3,1919.0,1.33580336]
[1742227239670,5.29100336,1919.3,1919.0,1.33580336]
[1742227240164,3.2078,1919.1,1919.0,1.33580336]
[1742227240473,4.25003,1919.1,1919.0,0.00780336]
[1742227240668,3.2078,1919.1,1919.0,0.00780336]
[1742227240866,5.68953,1919.1,1919.0,0.00780336]
[1742227241473,4.6473,1919.1,1919.0,1.05009336]
[1742227241676,5.68953,1919.1,1919.0,0.00780336]
[1742227241976,4.6473,1919.1,1919.0,2.43389336]
[1742227242174,4.6473,1919.1,1919.0,1.39160336]
[1742227242374,5.68953,1919.1,1919.0,1.39160336]
[1742227242575,4.60500336,1919.3,1919.0,1.39160336]
[1742227242771,4.60500336,1919.3,1919.2,1.04218]
[1742227243077,4.65510336,1919.3,1919.0,2.05710336]
[1742227243274,1.43,1919.2,1919.1,1.3268]
[1742227243477,2.47218,1919.2,1919.1,1.3268]
[1742227244367,1.43,1919.2,1919.1,1.3268]
[1742227244675,2.47218,1919.2,1919.1,1.3268]
[1742227245173,1.04223,1919.1,1919.0,0.00780336]
[1742227245373,1.43,1919.1,1919.0,2.37689336]
[1742227246169,3.90020336,1919.3,1919.0,1.33460336]
[1742227246373,1.3324,1919.2,1919.1,2.39743]
[1742227246883,0.00780336,1919.3,1919.2,1.04218]
[1742227247068,0.00780336,1919.3,1919.2,1.70508]
[1742227247371,3.2078,1920.0,1919.2,3.1629]
[1742227247577,3.2078,1919.8,1919.3,5.0692]
[1742227247873,1.04214,1919.3,1919.1,1.04219]
[1742227248174,1.04209,1919.4,1919.2,1.04216]
[1742227248369,1.3324,1919.4,1919.3,2.39732]
[1742227248569,3.21560336,1919.5,1919.4,1.04207]
[1742227248783,3.21560336,1919.5,1919.4,2.39727]
[1742227248971,3.21560336,1919.5,1919.4,1.3552]
[1742227249171,3.21560336,1919.5,1919.4,2.39727]
[1742227249670,0.00780336,1919.5,1919.4,2.39727]
[1742227250773,4.5663,1919.9,1919.8,1.04185]
[1742227250977,5.6081,1919.9,1919.8,1.04185]
[1742227251367,1.04185,1919.8,1919.7,1.04187]
[1742227251576,2.44235,1919.8,1919.7,1.04187]
[1742227251783,2.44235,1919.8,1919.6,2.40903]
[1742227252077,1.4005,1919.7,1919.6,2.40903]
[1742227252471,1.04197,1919.6,1919.5,1.04199]
[1742227252671,1.04196,1919.6,1919.5,1.3465]
[1742227252875,1.04203,1919.5,1919.3,1.3068]
[1742227253078,1.4441,1919.5,1919.4,2.38854]
[1742227253279,4.6519,1919.5,1919.4,2.38854]
[1742227253481,5.69392,1919.5,1919.4,1.3465]
[1742227253681,1.04207,1919.4,1919.1,1.3465]
[1742227253878,1.4441,1919.3,1919.2,1.04218]
[1742227254079,3.9242,1919.5,1919.4,1.04207]
[1742227254274,5.3683,1919.5,1919.4,1.04207]
[1742227254685,4.6519,1919.5,1919.4,1.04207]
[1742227255080,1.4441,1919.5,1919.4,1.04207]
[1742227255577,1.4441,1919.5,1919.4,2.35837]
[1742227255974,1.4441,1919.5,1919.4,3.06577]
[1742227256379,1.4441,1919.5,1919.4,1.04207]
[1742227256573,5.69392,1919.5,1919.3,1.0421]
[1742227256774,5.69392,1919.5,1919.3,2.3584]
[1742227256975,1.4336,1919.4,1919.3,2.3584]
[1742227257382,3.2078,1919.5,1919.4,1.04207]
[1742227257584,3.2078,1919.5,1919.4,2.35837]
[1742227258084,3.2078,1919.5,1919.4,1.04207]
[1742227258474,5.68342,1919.5,1919.3,2.35839]
[1742227258684,1.4264,1919.4,1919.3,2.35839]
[1742227258982,3.2078,1919.5,1919.4,1.04207]
[1742227259281,4.6342,1919.5,1919.4,2.41917]
[1742227260275,1.04212,1919.3,1919.2,5.43976]
[1742227260574,4.6342,1919.5,1919.2,5.43976]
[1742227260575,1.4264,1919.4,1919.2,1.04214]
[1742227260777,3.1743,1919.4,1919.3,1.04212]
[1742227260981,2.1322,1919.4,1919.3,1.04212]
[1742227261279,3.17431,1919.4,1919.2,1.04214]
[1742227261481,1.4264,1919.3,1919.2,1.04214]
[1742227262076,4.6342,1919.3,1919.0,0.67780336]
[1742227262283,1.04218,1919.2,1919.1,1.04222]
[1742227262486,1.424,1919.2,1919.1,1.04222]
[1742227263186,1.04223,1919.1,1919.0,0.00780336]
[1742227263383,4.25003,1919.1,1919.0,0.00780336]
[1742227263784,5.67403,1919.1,1919.0,0.00780336]
[1742227263987,1.04237,1918.9,1918.7,2.44815]
[1742227264290,1.424,1918.8,1918.0,2.60706]
[1742227264494,3.2078,1918.5,1918.4,1.04261]
[1742227264674,3.701,1918.7,1918.1,10.9204]
[1742227264878,3.9294,1919.0,1918.4,2.6065]
[1742227265105,3.2078,1919.0,1918.9,1.04234]
[1742227265394,3.2078,1919.0,1918.6,2.60624]
[1742227265395,1.3338,1919.2,1918.8,2.60596]
[1742227265578,1.3338,1919.2,1918.9,0.6919]
[1742227265780,2.38382336,1919.2,1919.0,1.04227]
[1742227265981,1.04225,1919.1,1918.9,1.7342]
[1742227266276,3.709,1919.0,1918.7,1.76003]
[1742227266479,1.3338,1918.9,1918.8,1.0424]
[1742227267180,2.37616,1918.9,1918.6,0.7176]
[1742227267487,1.3338,1918.9,1918.8,1.0424]
[1742227267881,2.0151,1919.0,1918.9,1.04234]
[1742227268679,1.32,1919.0,1918.9,1.04234]
[1742227268880,3.2078,1919.1,1919.0,1.04229]
[1742227269084,1.32,1919.1,1919.0,1.04229]
[1742227273299,0.00780336,1919.2,1919.1,1.04223]
[1742227273493,0.00780336,1919.2,1919.1,2.40043]
[1742227273679,3.36e-06,1919.2,1919.1,4.90043]
[1742227273990,3.36e-06,1919.2,1919.1,8.10823]
[1742227274190,3.36e-06,1919.2,1919.1,9.52013]
[1742227274386,3.36e-06,1919.2,1919.1,7.02013]
[1742227275482,3.36e-06,1919.2,1919.1,3.81233]
[1742227275884,3.36e-06,1919.2,1919.1,1.04223]
[1742227276177,1.99470336,1919.2,1919.1,1.04223]
[1742227276480,3.03688336,1919.2,1919.1,1.04223]
[1742227276683,1.99470336,1919.2,1919.1,1.04223]
[1742227276991,6.72588336,1919.2,1919.1,1.04223]
[1742227277494,5.68370336,1919.2,1919.1,1.04223]
[1742227277789,1.99470336,1919.2,1919.1,1.04223]
[1742227278883,3.03688336,1919.2,1919.1,1.04223]
[1742227279079,7.10019336,1919.2,1918.7,1.04244]
[1742227279284,3.2078,1918.8,1918.7,1.04244]
[1742227279789,5.9181,1918.8,1918.7,1.04244]
[1742227280191,6.9605,1918.8,1918.6,1.387]
[1742227280382,1.3058,1918.7,1918.6,2.42951]
[1742227281590,3.2078,1918.8,1918.7,1.04245]
[1742227281790,3.2078,1918.8,1918.7,3.85085]
[1742227281986,1.3058,1919.0,1918.9,1.04234]
[1742227282189,0.7241,1919.1,1919.0,1.04229]
[1742227282490,2.0299,1919.1,1919.0,1.04229]
[1742227282692,1.3058,1919.1,1919.0,1.04229]
[1742227283387,1.3058,1919.1,1918.9,2.41053]
[1742227283587,0.6868,1919.0,1918.9,2.41054]
[1742227284099,6.29073,1919.0,1918.8,1.04238]
[1742227284394,0.7083,1918.9,1918.8,1.04238]
[1742227284595,1.3538,1918.9,1918.8,1.04238]
[1742227285495,3.8946,1919.0,1918.9,1.04234]
[1742227285496,3.2078,1919.0,1918.9,1.04234]
[1742227286187,2.0621,1919.1,1919.0,1.04229]
[1742227287293,3.77407,1919.1,1918.9,1.04231]
[1742227287496,4.6086,1919.0,1918.4,4.3484]
[1742227287803,4.25022,1918.8,1918.6,1.04248]
[1742227288091,2.7406,1918.7,1918.5,2.43822]
[1742227288293,1.4008,1918.6,1918.5,2.43826]
[1742227288694,3.2078,1918.8,1918.5,1.3957]
[1742227288894,1.4008,1918.8,1918.7,1.04245]
[1742227289091,44.485,1918.9,1918.8,1.0424]
[1742227289597,3.685,1918.9,1918.8,1.0424]
[1742227289901,4.72734,1918.9,1918.8,1.0424]
[1742227290497,3.685,1918.9,1918.6,1.3957]
[1742227290695,4.72736,1918.9,1918.6,1.3957]
[1742227290898,4.72736,1918.9,1918.8,1.0424]
[1742227291191,1.0424,1918.8,1918.7,1.04241]
[1742227291396,4.2502,1918.8,1918.6,1.3957]
[1742227291594,1.04245,1918.7,1918.2,7.19071336]
[1742227291797,4.91641,1918.6,1918.5,1.04256]
[1742227291995,5.59971,1918.6,1918.5,1.04256]
[1742227292494,4.5572,1918.6,1918.5,1.04256]
[1742227293395,3.2078,1918.6,1918.5,1.04256]
[1742227294693,3.2078,1918.6,1918.5,4.72256]
[1742227295300,1.33,1919.0,1918.9,1.04234]
[1742227296394,1.33,1919.0,1918.8,1.3529]
[1742227296395,2.37229,1919.0,1918.8,2.39527]
[1742227296602,2.37229,1919.0,1918.9,1.04234]
[1742227297401,1.33,1919.0,1918.9,1.04234]
[1742227297602,3.67800336,1919.2,1919.1,1.04223]
[1742227297802,3.36e-06,1919.2,1919.1,1.04223]
[1742227298297,3.36e-06,1919.2,1919.1,7.93203]
[1742227298492,3.36e-06,1919.2,1919.1,9.31633]
[1742227299796,3.36e-06,1919.2,1919.1,11.81633]
[1742227300293,3.36e-06,1919.2,1919.1,9.31633]
[1742227300695,3.36e-06,1919.2,1919.1,5.63433]
[1742227302006,3.36e-06,1919.2,1919.1,9.30733]
[1742227305505,3.36e-06,1919.2,1919.1,11.80733]
[1742227305705,1.4351,1919.6,1919.5,1.04202]
[1742227305904,3.8716,1920.1,1919.8,1.04185]
[1742227306108,1.4351,1919.8,1919.7,1.04191]
[1742227306296,1.33,1920.1,1920.0,1.04175]
[1742227307908,1.33,1920.1,1919.9,1.04957336]
[1742227308112,2.44915,1920.0,1919.9,0.00780336]
[1742227309305,1.4074,1920.0,1919.4,3.662]
[1742227309509,1.042,1919.6,1919.3,3.658]
[1742227309815,2.0741,1919.5,1919.4,1.04203]
[1742227310718,1.04207,1919.4,1919.3,1.04988336]
[1742227311013,4.5147,1919.4,1919.3,1.04988336]
[1742227311315,4.5147,1919.4,1919.3,0.00780336]
[1742227311316,5.55677,1919.4,1919.3,0.00780336]
[1742227311703,4.5147,1919.4,1919.3,1.04992336]
[1742227312606,5.2362,1919.4,1919.3,1.04992336]
[1742227314613,6.27827,1919.4,1919.3,0.00780336]
[1742227316120,6.27827,1919.4,1919.3,1.04992336]
[1742227316317,6.27827,1919.4,1919.3,0.00780336]
[1742227317018,6.27827,1919.4,1919.3,1.04992336]
[1742227317220,6.27827,1919.4,1919.3,0.00780336]
[1742227318018,10.34143,1919.4,1918.5,14.37436]
[1742227318219,4.25013,1919.0,1918.9,1.04234]
[1742227318523,6.8508,1919.0,1918.9,1.04234]
[1742227318721,6.8508,1919.0,1918.8,1.04236]
[1742227318923,1.9953,1918.9,1918.8,1.04236]
[1742227320322,1.9953,1918.9,1918.7,0.00780336]
[1742227320525,9.225,1918.8,1918.7,0.00780336]
[1742227321036,1.04249,1918.7,1918.3,4.6254]
[1742227321222,4.67955,1918.6,1918.4,1.04258]
[1742227321414,2.0183,1918.5,1918.4,1.04258]
[1742227321827,2.0183,1918.5,1918.3,1.04263]
[1742227322030,1.0427,1918.3,1918.1,2.46036]
[1742227322328,1.04285,1918.0,1917.5,3.2078]
[1742227322523,1.419,1917.9,1917.8,1.04291]
[1742227322727,2.1005,1917.9,1917.8,1.04291]
[1742227323029,2.1005,1917.9,1917.7,1.04299]
[1742227323231,1.419,1917.8,1917.7,1.04299]
[1742227329229,0.00780336,1918.0,1917.9,1.04289]
[1742227329733,0.00780336,1918.0,1917.9,4.25069]
[1742227329934,0.00780336,1918.0,1917.9,6.37929]
[1742227330834,0.00780336,1918.0,1917.9,2.46679]
[1742227331022,1.31280336,1918.0,1917.9,2.46679]
[1742227332146,2.35563336,1918.0,1917.9,1.4239]
[1742227332347,2.01430336,1918.0,1917.9,2.46679]
[1742227333344,1.31280336,1918.0,1917.9,2.46679]
[1742227334952,0.00780336,1918.0,1917.9,2.46679]
[1742227335450,1.44530336,1918.0,1917.9,2.46679]
[1742227336150,0.00780336,1918.0,1917.9,2.46679]
[1742227336840,0.00780336,1918.0,1917.9,6.08279]
[1742227337754,3.21560336,1918.0,1917.9,1.04289]
[1742227337954,4.25843336,1918.0,1917.9,1.04289]
[1742227338156,6.32613336,1918.0,1917.9,1.04289]
[1742227338356,5.28330336,1918.0,1917.9,1.04289]
[1742227339353,5.28330336,1918.0,1917.5,3.2078]
[1742227339354,2.60722,1917.9,1917.3,3.2078]
[1742227339550,3.2078,1917.7,1917.4,1.3162]
[1742227339751,1.3597,1917.6,1917.5,1.0431]
[1742227339947,6.8588,1917.9,1917.8,1.04294]
[1742227340146,4.5675,1917.9,1917.8,1.04294]
[1742227340348,0.00780336,1918.0,1917.9,1.04289]
[1742227342249,1.05065336,1918.0,1917.8,1.3381]
[1742227342453,0.00780336,1918.0,1917.7,3.2078]
[1742227342653,1.04301,1917.7,1917.2,5.81595]
[1742227342860,3.2078,1917.7,1917.6,1.04305]
[1742227343050,4.25079,1917.7,1917.4,1.3381]
[1742227343254,1.0431,1917.5,1917.4,1.3381]
[1742227344060,3.2078,1917.5,1917.4,2.38126]
[1742227344359,3.2078,1917.5,1917.4,1.04316]
[1742227344661,7.92684,1917.7,1917.6,1.04305]
[1742227345057,6.8838,1917.7,1917.6,1.04305]
[1742227345765,3.2078,1917.7,1917.6,1.04305]
[1742227345953,9.3611,1917.9,1917.8,1.04294]
[1742227346258,1.4374,1917.9,1917.8,1.04294]
[1742227346851,0.00780336,1918.0,1917.9,1.04289]
[1742227347557,0.00780336,1918.0,1917.9,1.72409]
[1742227347759,0.00780336,1918.0,1917.9,5.62359]
[1742227348257,0.00780336,1918.0,1917.9,2.41579]
[1742227348462,0.00780336,1918.0,1917.9,5.62359]
[1742227349159,3.2078,1918.3,1918.2,1.04272]
[1742227349558,1.3514,1918.6,1918.5,1.04256]
[1742227349859,1.3514,1918.6,1918.3,2.1597]
[1742227350163,45.3592,1918.6,1918.5,1.04256]
[1742227350361,45.36700336,1918.6,1918.5,1.04256]
[1742227350555,4.56700336,1918.6,1918.5,1.04256]
[1742227350756,5.60951336,1918.6,1918.4,1.04258]
[1742227350953,1.04261,1918.4,1918.3,0.00780336]
[1742227351254,3.2078,1918.4,1918.3,1.05047336]
[1742227351458,3.2078,1918.4,1918.3,1.05045336]
[1742227351654,4.25041,1918.4,1918.3,0.00780336]
[1742227351855,7.92541,1918.4,1918.3,0.00780336]
[1742227352754,6.8828,1918.4,1918.3,1.05047336]
[1742227353760,6.8768,1918.4,1918.3,1.05047336]
[1742227353965,3.669,1918.4,1918.3,1.05047336]
[1742227354169,4.5792,1918.5,1918.4,1.04261]
[1742227354369,1.3714,1918.5,1918.4,2.44961]
[1742227354667,1.3714,1918.5,1918.4,1.04261]
[1742227354865,1.3714,1918.5,1918.4,2.44961]
[1742227355663,2.41396,1918.5,1918.4,1.04261]
[1742227355865,5.62176,1918.5,1918.4,1.04261]
[1742227356063,4.5792,1918.5,1918.4,1.04261]
[1742227357264,4.5792,1918.5,1918.3,1.05044336]
[1742227357468,5.081,1918.4,1918.3,1.05044336]
[1742227357855,6.12361,1918.4,1918.3,0.00780336]
[1742227358056,6.12361,1918.4,1917.9,1.04287]
[1742227358057,1.04281,1918.1,1917.9,1.04287]
[1742227358265,1.04293,1917.9,1917.7,1.04299]
[1742227358574,3.691,1917.9,1917.8,1.04294]
[1742227358962,1.366,1918.0,1917.9,1.04289]
[1742227359265,0.6977,1918.0,1917.6,2.60762]
[1742227359462,0.6977,1918.0,1917.9,1.04289]
[1742227359968,3.9055,1918.0,1917.7,1.4424]
[1742227360159,1.04289,1917.9,1917.8,1.04291]
[1742227360360,1.04308,1917.6,1917.5,1.04309]
[1742227360571,3.705,1917.6,1917.5,1.04309]
[1742227361266,1.3794,1917.8,1917.7,1.04299]
[1742227361664,1.3794,1917.8,1917.6,1.4424]
[1742227361665,1.3794,1917.9,1917.8,1.04294]
[1742227361864,0.6977,1918.0,1917.9,1.04289]
[1742227363075,1.4283,1918.1,1918.0,1.04283]
[1742227363969,1.74413,1918.4,1918.3,1.04267]
[1742227363970,3.9093,1918.4,1918.3,1.04267]
[1742227364169,7.6073,1918.4,1918.3,1.04267]
[1742227364967,8.64991,1918.4,1918.3,1.04267]
[1742227365166,7.6073,1918.4,1918.3,1.04267]
[1742227365379,8.64991,1918.4,1918.3,1.04267]
[1742227366368,1.3221,1918.5,1918.4,1.04261]
[1742227366565,0.00780336,1918.6,1918.5,1.04256]
[1742227368073,1.3221,1918.8,1918.7,1.04245]
[1742227368568,4.351,1919.2,1919.1,1.04223]
[1742227368776,5.6602,1919.2,1919.1,1.04223]
[1742227369476,5.6602,1919.2,1918.8,1.4023]
[1742227369677,5.6602,1919.2,1919.0,1.04226]
[1742227369678,6.7024,1919.2,1919.0,1.04226]
[1742227370268,5.6602,1919.2,1919.0,1.04226]
[1742227370474,5.6602,1919.2,1919.1,1.04223]
[1742227370674,1.9662,1919.2,1919.1,1.04223]
[1742227370872,1.3092,1919.2,1919.1,1.04223]
[1742227372374,0.00780336,1919.3,1919.2,1.04218]
[1742227372684,3.2078,1920.3,1919.2,3.2078]
[1742227372870,3.2078,1920.3,1919.1,4.3679]
[1742227372871,1.3561,1920.0,1919.9,1.0418]
[1742227374378,1.3561,1920.0,1919.8,1.04961336]
[1742227374581,1.3561,1920.0,1919.9,1.0418]
[1742227375673,1.3561,1920.0,1919.9,2.4103]
[1742227375879,40.80780336,1920.1,1920.0,1.04175]
[1742227375880,0.00780336,1920.1,1920.0,1.04175]
[1742227376277,40.80780336,1920.1,1920.0,1.04175]
[1742227376981,0.00780336,1920.1,1920.0,1.04175]
[1742227377181,1.33360336,1920.1,1920.0,1.04175]
[1742227378179,1.33360336,1920.1,1920.0,2.44495]
[1742227381479,0.00780336,1920.1,1920.0,2.44495]
[1742227382079,0.00780336,1920.1,1920.0,6.11595]
[1742227382277,3.2078,1920.5,1920.2,1.04164]
[1742227382477,0.7034,1920.6,1920.2,1.04164]
[1742227382478,2.1177,1920.6,1920.5,1.04147]
[1742227383284,3.2078,1920.8,1920.4,3.67]
[1742227383483,3.2078,1920.8,1920.7,1.04137]
[1742227383777,3.21560336,1920.8,1920.7,1.04137]
[1742227384576,4.65640336,1920.8,1920.7,1.04137]
[1742227384772,3.2078,1921.1,1921.0,1.0412]
[1742227384985,3.2078,1921.1,1920.9,1.04123]
[1742227385185,1.4408,1921.0,1920.8,2.41218]
[1742227385575,1.4408,1921.0,1920.9,1.04126]
[1742227386387,1.4408,1921.0,1920.9,2.41216]
[1742227387287,1.4408,1921.0,1920.9,5.61996]
[1742227387790,0.7184,1921.4,1921.3,1.04104]
[1742227388085,1.75943,1921.4,1921.2,1.04109]
[1742227388286,1.75943,1921.4,1921.1,2.45971]
[1742227388287,1.4044,1921.3,1921.1,2.45971]
[1742227388489,1.4044,1921.3,1921.2,1.04109]
[1742227388990,2.44544,1921.3,1921.1,2.45971]
[1742227389189,1.4044,1921.3,1921.2,1.04109]
[1742227390992,1.4044,1921.3,1921.1,1.4186]
[1742227391194,2.44548,1921.3,1921.1,1.04111]
[1742227391491,1.04109,1921.2,1921.1,1.04111]
[1742227391688,5.3014,1921.2,1920.8,0.00780336]
[1742227391892,4.24906,1920.9,1920.8,0.00780336]
[1742227392095,7.90806,1920.9,1920.8,0.00780336]
[1742227392685,49.42146,1920.9,1920.8,0.00780336]
[1742227393085,49.42146,1920.9,1920.8,1.04911336]
[1742227393298,8.62146,1920.9,1920.8,0.00780336]
[1742227393681,1.3897,1921.0,1920.9,1.04126]
[1742227394089,1.3897,1921.0,1920.9,2.47786]
[1742227395586,4.3589,1921.2,1921.1,1.04115]
[1742227395797,1.04116,1921.1,1921.0,1.04118]
[1742227396095,1.0412,1921.0,1920.8,3.66680336]
[1742227396294,1.4473,1920.9,1920.8,0.00780336]
[1742227396695,1.4473,1920.9,1920.8,1.04911336]
[1742227397996,2.48856,1920.9,1920.8,1.04911336]
[1742227398196,2.48856,1920.9,1920.8,0.00780336]
[1742227398397,1.4473,1920.9,1920.8,1.04911336]
[1742227399297,1.4473,1920.9,1920.8,0.00780336]
[1742227399499,5.69636,1920.9,1920.8,0.00780336]
[1742227400493,5.69636,1920.9,1920.8,1.04911336]
[1742227400998,5.69636,1920.9,1920.8,0.00780336]
[1742227401697,11.84836,1920.9,1920.8,0.00780336]
[1742227401898,1.04148,1920.5,1920.3,1.3136]
[1742227402096,2.60334,1920.8,1920.3,1.3136]
[1742227402097,6.8628,1920.7,1920.6,1.04142]
[1742227402297,8.1801,1920.7,1920.6,1.04142]
[1742227403197,1.3874,1920.8,1920.5,0.00780336]
[1742227403198,1.3874,1920.8,1920.7,1.04137]
[1742227403404,2.7047,1920.8,1920.7,1.04137]
[1742227404893,3.74601,1920.8,1920.7,1.04137]
[1742227405098,1.3173,1920.8,1920.7,1.04137]
[1742227405291,3.2078,1921.0,1920.9,1.04126]
[1742227405488,6.4994,1921.1,1921.0,1.0412]
[1742227405691,7.54059,1921.1,1920.9,1.04122]
[1742227405896,7.54059,1921.1,1920.8,1.4024]
[1742227406096,7.54059,1921.1,1921.0,1.0412]
[1742227406305,6.4994,1921.1,1921.0,1.0412]
[1742227408398,2.8484,1921.1,1921.0,1.0412]
[1742227410897,2.8484,1921.1,1920.9,1.04123]
[1742227411097,3.2078,1921.0,1920.8,1.4024]
[1742227411302,3.2078,1921.0,1920.8,2.44371]
[1742227411303,1.4202,1920.9,1920.8,2.44371]
[1742227412706,1.4202,1920.9,1920.7,1.04134]
[1742227413006,2.4615,1920.9,1920.7,1.04134]
[1742227413199,2.4615,1920.9,1920.6,2.1094]
[1742227413392,2.4615,1920.9,1920.8,1.04131]
[1742227413596,1.04131,1920.8,1920.7,2.44362]
[1742227413794,2.46151,1920.8,1920.7,2.44362]
[1742227414004,1.4202,1920.8,1920.7,2.44362]
[1742227414606,6.8368,1921.0,1920.9,1.04126]
[1742227414902,3.2078,1921.0,1920.9,1.04126]
[1742227415306,1.3798,1921.0,1920.9,1.04126]
[1742227416698,1.3798,1921.0,1920.8,1.3448]
[1742227416699,1.04126,1920.9,1920.8,1.3448]
[1742227416911,1.04131,1920.9,1920.7,1.04133]
[1742227417205,1.4225,1920.8,1920.7,1.04133]
[1742227417405,1.4225,1920.8,1920.7,2.44923]
[1742227419611,6.8218,1921.0,1920.9,1.04126]
[1742227420812,7.863,1921.0,1920.9,1.04126]
[1742227421106,8.2696,1921.0,1920.9,1.04126]
[1742227421515,5.0618,1921.0,1920.9,1.04126]
[1742227423016,6.103,1921.0,1920.8,2.44917]
[1742227423221,2.41216,1920.9,1920.8,2.44917]
[1742227423514,2.41216,1920.9,1920.6,0.7071]
[1742227423707,1.3709,1920.8,1920.7,2.47517]
[1742227423905,5.62001,1920.8,1920.5,0.00780336]
[1742227424106,5.62001,1920.8,1920.6,1.04142]
[1742227424107,1.3603,1920.7,1920.6,1.04142]
[1742227424307,2.7312,1920.7,1920.6,1.04142]
[1742227425211,3.77257,1920.7,1920.6,1.04142]
[1742227425616,2.7312,1920.7,1920.6,1.04142]
[1742227425912,1.04142,1920.6,1920.5,0.00780336]
[1742227426223,1.04142,1920.6,1920.1,3.2078]
[1742227426224,1.04164,1920.2,1920.1,1.04166]